[Event "*** SCC Grand Prix: Titled Tuesday Blitz"]
[Site "Chess.com"]
[Date "2020.08.25"]
[Round "9"]
[White "Sychev_Klementy"]
[Black "Gurvich_Vitaly"]
[Result "0-1"]
[WhiteElo "2750"]
[BlackElo "2633"]
[TimeControl "180+1"]
[EndTime "11:47:53 PDT"]
[Termination "Gurvich_Vitaly won on time"]

1. e4 {[%clk 0:03:00.8]} 1... c5 {[%clk 0:02:59.8]} 2. d4 {[%clk 0:02:59.6]}
2... cxd4 {[%clk 0:02:59.7]} 3. c3 {[%clk 0:02:59.5]} 3... d3 {[%clk 0:03:00]}
4. c4 {[%clk 0:02:56.8]} 4... Nc6 {[%clk 0:03:00.4]} 5. Nc3 {[%clk 0:02:54.7]}
5... d6 {[%clk 0:02:58.9]} 6. Bxd3 {[%clk 0:02:51]} 6... g6 {[%clk 0:02:58.2]}
7. Nf3 {[%clk 0:02:50.8]} 7... Bg7 {[%clk 0:02:58]} 8. h3 {[%clk 0:02:50.6]}
8... Nf6 {[%clk 0:02:57.7]} 9. O-O {[%clk 0:02:49.8]} 9... O-O {[%clk
0:02:58.1]} 10. Re1 {[%clk 0:02:45.4]} 10... b6 {[%clk 0:02:51.4]} 11. Rb1
{[%clk 0:02:43.8]} 11... Bb7 {[%clk 0:02:50.6]} 12. b3 {[%clk 0:02:42.3]} 12...
Nd7 {[%clk 0:02:47.6]} 13. Bb2 {[%clk 0:02:39.4]} 13... a6 {[%clk 0:02:47.5]}
14. Qd2 {[%clk 0:02:20.5]} 14... Rc8 {[%clk 0:02:43.9]} 15. Rbd1 {[%clk
0:02:15.6]} 15... Nde5 {[%clk 0:02:40.5]} 16. Be2 {[%clk 0:02:06.3]} 16... Nxf3+
{[%clk 0:02:39]} 17. Bxf3 {[%clk 0:02:03.5]} 17... Nd4 {[%clk 0:01:40.8]} 18.
Bg4 {[%clk 0:01:51.7]} 18... f5 {[%clk 0:01:25]} 19. exf5 {[%clk 0:01:48.5]}
19... gxf5 {[%clk 0:01:25.9]} 20. Bh5 {[%clk 0:01:47.7]} 20... e5 {[%clk
0:01:08.3]} 21. Ne2 {[%clk 0:01:35.9]} 21... Qh4 {[%clk 0:01:00.5]} 22. Nxd4
{[%clk 0:01:15.6]} 22... Qxh5 {[%clk 0:00:57.8]} 23. Nc2 {[%clk 0:00:56.2]}
23... Rf6 {[%clk 0:00:41.1]} 24. Ne3 {[%clk 0:00:39.6]} 24... Bh6 {[%clk
0:00:40.5]} 25. Qe2 {[%clk 0:00:38.6]} 25... Qg6 {[%clk 0:00:37.4]} 26. f3
{[%clk 0:00:36.4]} 26... Rf7 {[%clk 0:00:35.3]} 27. Nd5 {[%clk 0:00:33.5]} 27...
Bg7 {[%clk 0:00:34]} 28. Nxb6 {[%clk 0:00:30.2]} 28... Re8 {[%clk 0:00:33.7]}
29. Ba3 {[%clk 0:00:25.2]} 29... Re6 {[%clk 0:00:33.4]} 30. Nd5 {[%clk
0:00:22.8]} 30... h5 {[%clk 0:00:32.6]} 31. Nf4 {[%clk 0:00:21]} 31... exf4
{[%clk 0:00:22.1]} 32. Qxe6 {[%clk 0:00:18.9]} 32... Qg3 {[%clk 0:00:22.4]} 33.
Qe2 {[%clk 0:00:12.7]} 33... Bf6 {[%clk 0:00:16.3]} 34. Qf2 {[%clk 0:00:10.3]}
34... Qg5 {[%clk 0:00:16]} 35. Rxd6 {[%clk 0:00:06.1]} 35... Rg7 {[%clk
0:00:15.8]} 36. Rxf6 {[%clk 0:00:05.7]} 36... Qxf6 {[%clk 0:00:15.4]} 37. Bb2
{[%clk 0:00:05.2]} 37... Qd6 {[%clk 0:00:15.1]} 38. Bxg7 {[%clk 0:00:04.8]}
38... Kxg7 {[%clk 0:00:16]} 39. Kh2 {[%clk 0:00:04.8]} 39... Kg6 {[%clk
0:00:15.9]} 40. Qh4 {[%clk 0:00:03.9]} 40... Bc8 {[%clk 0:00:12.9]} 41. Qe7
{[%clk 0:00:03]} 41... Qd2 {[%clk 0:00:12.7]} 42. Qe8+ {[%clk 0:00:02.5]} 42...
Kg5 {[%clk 0:00:12.8]} 0-1

[Event "*** SCC Grand Prix: Titled Tuesday Blitz"]
[Site "Chess.com"]
[Date "2020.08.25"]
[Round "9"]
[White "Mbneu"]
[Black "Nafania1"]
[Result "0-1"]
[WhiteElo "2247"]
[BlackElo "2447"]
[TimeControl "180+1"]
[EndTime "11:47:53 PDT"]
[Termination "Nafania1 won by resignation"]

1. d4 {[%clk 0:03:00.9]} 1... Nf6 {[%clk 0:02:59.6]} 2. c4 {[%clk 0:03:01.3]}
2... e6 {[%clk 0:02:59.6]} 3. Nc3 {[%clk 0:03:01.4]} 3... Bb4 {[%clk 0:02:59.8]}
4. Bg5 {[%clk 0:03:01.7]} 4... c5 {[%clk 0:02:55.5]} 5. d5 {[%clk 0:03:01.5]}
5... h6 {[%clk 0:02:48.5]} 6. Bd2 {[%clk 0:02:53.8]} 6... O-O {[%clk 0:02:41.7]}
7. f3 {[%clk 0:02:48.3]} 7... d6 {[%clk 0:02:40]} 8. e4 {[%clk 0:02:47.4]} 8...
Re8 {[%clk 0:02:40.5]} 9. Nge2 {[%clk 0:02:42.4]} 9... Nbd7 {[%clk 0:02:27]} 10.
a3 {[%clk 0:02:40.6]} 10... Ba5 {[%clk 0:02:25.8]} 11. dxe6 {[%clk 0:02:34.9]}
11... fxe6 {[%clk 0:02:22.7]} 12. Nf4 {[%clk 0:02:33.2]} 12... d5 {[%clk
0:02:22.5]} 13. cxd5 {[%clk 0:02:24.6]} 13... exd5 {[%clk 0:02:22]} 14. Nfxd5
{[%clk 0:02:20.3]} 14... Ne5 {[%clk 0:02:05.4]} 15. Nxf6+ {[%clk 0:02:06]} 15...
Qxf6 {[%clk 0:02:04.9]} 16. Nd5 {[%clk 0:02:03.9]} 16... Bxd2+ {[%clk
0:01:49.8]} 17. Qxd2 {[%clk 0:02:01.8]} 17... Qf7 {[%clk 0:01:46.5]} 18. Be2
{[%clk 0:01:50.4]} 18... Be6 {[%clk 0:01:46.1]} 19. O-O {[%clk 0:01:29]} 19...
Rad8 {[%clk 0:01:45.6]} 20. Rad1 {[%clk 0:01:29]} 20... a6 {[%clk 0:01:31.4]}
21. f4 {[%clk 0:01:21.6]} 21... Nc6 {[%clk 0:01:31.3]} 22. Bc4 {[%clk
0:01:10.6]} 22... b5 {[%clk 0:01:31.2]} 23. Ba2 {[%clk 0:01:08.6]} 23... c4
{[%clk 0:01:29.2]} 24. Bb1 {[%clk 0:00:57.9]} 24... Ne7 {[%clk 0:01:20.5]} 25.
Nxe7+ {[%clk 0:00:55.5]} 25... Qxe7 {[%clk 0:01:20.9]} 26. Qe3 {[%clk
0:00:54.8]} 26... Bg4 {[%clk 0:01:15.4]} 27. Rxd8 {[%clk 0:00:52.9]} 27... Rxd8
{[%clk 0:01:15.7]} 28. e5 {[%clk 0:00:52.2]} 28... Re8 {[%clk 0:01:01.4]} 29.
Re1 {[%clk 0:00:44.2]} 29... Qc7 {[%clk 0:00:53.3]} 30. f5 {[%clk 0:00:40.7]}
30... Bh5 {[%clk 0:00:53.1]} 31. Qe4 {[%clk 0:00:29]} 31... Qc5+ {[%clk
0:00:48.1]} 32. Kh1 {[%clk 0:00:28]} 32... Kf8 {[%clk 0:00:42.9]} 33. f6 {[%clk
0:00:25.1]} 33... gxf6 {[%clk 0:00:39.7]} 34. Rf1 {[%clk 0:00:17.6]} 34... Rxe5
{[%clk 0:00:28.3]} 35. Qh7 {[%clk 0:00:15.3]} 35... Bf7 {[%clk 0:00:27.8]} 36.
Qxh6+ {[%clk 0:00:14.5]} 36... Ke8 {[%clk 0:00:27.8]} 37. Qxf6 {[%clk
0:00:14.4]} 37... Re7 {[%clk 0:00:24.6]} 38. Bg6 {[%clk 0:00:12.5]} 38... Bxg6
{[%clk 0:00:23.9]} 39. Qxg6+ {[%clk 0:00:13.4]} 39... Kd7 {[%clk 0:00:23.5]} 40.
Rd1+ {[%clk 0:00:13.5]} 40... Kc7 {[%clk 0:00:23.6]} 41. Qg3+ {[%clk 0:00:12.8]}
41... Qe5 {[%clk 0:00:22.7]} 42. Qf3 {[%clk 0:00:12.5]} 42... Qxb2 {[%clk
0:00:21.1]} 43. h4 {[%clk 0:00:10.8]} 43... Qe5 {[%clk 0:00:20]} 44. h5 {[%clk
0:00:10.4]} 44... c3 {[%clk 0:00:19.1]} 45. g4 {[%clk 0:00:10.1]} 45... Rd7
{[%clk 0:00:16]} 46. Rc1 {[%clk 0:00:09.8]} 46... Kb6 {[%clk 0:00:14.1]} 47.
Qxc3 {[%clk 0:00:09.4]} 47... Qe4+ {[%clk 0:00:14.1]} 48. Kh2 {[%clk 0:00:09.4]}
48... Qf4+ {[%clk 0:00:13]} 49. Kg2 {[%clk 0:00:08.7]} 49... Rd2+ {[%clk
0:00:12.8]} 50. Kg1 {[%clk 0:00:07.8]} 50... Qf2+ {[%clk 0:00:12.8]} 0-1

[Event "*** SCC Grand Prix: Titled Tuesday Blitz"]
[Site "Chess.com"]
[Date "2020.08.25"]
[Round "9"]
[White "HanSchut"]
[Black "anon481216"]
[Result "1-0"]
[WhiteElo "2290"]
[BlackElo "2428"]
[TimeControl "180+1"]
[EndTime "11:47:55 PDT"]
[Termination "HanSchut won on time"]

1. e4 {[%clk 0:03:00.9]} 1... c5 {[%clk 0:02:59.6]} 2. Nf3 {[%clk 0:03:00.6]}
2... e6 {[%clk 0:02:58.9]} 3. c4 {[%clk 0:03:01]} 3... Nc6 {[%clk 0:02:49.9]} 4.
Nc3 {[%clk 0:03:00.9]} 4... e5 {[%clk 0:02:47.4]} 5. Nd5 {[%clk 0:03:00.5]} 5...
g6 {[%clk 0:02:35.7]} 6. d3 {[%clk 0:02:58.8]} 6... Bg7 {[%clk 0:02:34.6]} 7.
Be2 {[%clk 0:02:52.5]} 7... d6 {[%clk 0:02:34.6]} 8. O-O {[%clk 0:02:48.8]} 8...
Nce7 {[%clk 0:02:26.1]} 9. a3 {[%clk 0:02:28.9]} 9... Nxd5 {[%clk 0:02:23]} 10.
cxd5 {[%clk 0:02:29.6]} 10... Ne7 {[%clk 0:02:22.9]} 11. b4 {[%clk 0:02:29.5]}
11... cxb4 {[%clk 0:02:21.4]} 12. axb4 {[%clk 0:02:29]} 12... O-O {[%clk
0:02:21.1]} 13. Be3 {[%clk 0:02:29]} 13... b6 {[%clk 0:02:04.7]} 14. d4 {[%clk
0:02:23.8]} 14... exd4 {[%clk 0:02:00.9]} 15. Bxd4 {[%clk 0:02:22.7]} 15... Bxd4
{[%clk 0:01:48.3]} 16. Nxd4 {[%clk 0:02:18.3]} 16... a5 {[%clk 0:01:45.6]} 17.
Nc6 {[%clk 0:01:57.9]} 17... Nxc6 {[%clk 0:01:11.6]} 18. dxc6 {[%clk 0:01:58.8]}
18... Be6 {[%clk 0:01:06.4]} 19. b5 {[%clk 0:01:33.7]} 19... d5 {[%clk
0:00:57.4]} 20. exd5 {[%clk 0:01:11.6]} 20... Bxd5 {[%clk 0:00:55.9]} 21. Qd4
{[%clk 0:01:09.5]} 21... Qg5 {[%clk 0:00:51.4]} 22. Qg4 {[%clk 0:00:55.8]} 22...
Qxg4 {[%clk 0:00:48.3]} 23. Bxg4 {[%clk 0:00:56.7]} 23... Bc4 {[%clk 0:00:48.2]}
24. Rfb1 {[%clk 0:00:57]} 24... a4 {[%clk 0:00:39.8]} 25. Bd7 {[%clk 0:00:56.3]}
25... Rfd8 {[%clk 0:00:31.9]} 26. Ra3 {[%clk 0:00:47.8]} 26... Bb3 {[%clk
0:00:29.3]} 27. f3 {[%clk 0:00:45.3]} 27... Kf8 {[%clk 0:00:27.6]} 28. Kf2
{[%clk 0:00:44]} 28... Ke7 {[%clk 0:00:27.4]} 29. Ke3 {[%clk 0:00:37]} 29... Kd6
{[%clk 0:00:27]} 30. Kd4 {[%clk 0:00:37.5]} 30... Kc7 {[%clk 0:00:21.4]} 31. Rb2
{[%clk 0:00:36.4]} 31... Be6 {[%clk 0:00:20]} 32. Rb4 {[%clk 0:00:30.3]} 32...
Bxd7 {[%clk 0:00:19.7]} 33. cxd7 {[%clk 0:00:30.4]} 33... Rxd7+ {[%clk
0:00:19.9]} 34. Kc3 {[%clk 0:00:31.3]} 34... Rd5 {[%clk 0:00:19.2]} 35. Rc4+
{[%clk 0:00:31.2]} 35... Kb7 {[%clk 0:00:18.6]} 36. Kb4 {[%clk 0:00:30.4]} 36...
Rd2 {[%clk 0:00:18.3]} 37. Rac3 {[%clk 0:00:28.3]} 37... Rb2+ {[%clk 0:00:12.9]}
38. Ka3 {[%clk 0:00:28.5]} 38... Rxb5 {[%clk 0:00:13.1]} 39. Rc7+ {[%clk
0:00:28.4]} 39... Ka6 {[%clk 0:00:13.4]} 40. Rxf7 {[%clk 0:00:28.6]} 40... Rb1
{[%clk 0:00:08.3]} 41. Kxa4 {[%clk 0:00:27.5]} 41... b5+ {[%clk 0:00:07.5]} 42.
Ka3 {[%clk 0:00:26.9]} 42... b4+ {[%clk 0:00:08]} 43. Ka2 {[%clk 0:00:26.4]}
43... Rg1 {[%clk 0:00:05.6]} 44. Rc2 {[%clk 0:00:24.3]} 44... Kb5+ {[%clk
0:00:05.5]} 45. Kb3 {[%clk 0:00:24.3]} 45... Ra3+ {[%clk 0:00:05]} 46. Kb2
{[%clk 0:00:25.2]} 46... Rga1 {[%clk 0:00:01.7]} 47. Rcc7 {[%clk 0:00:20.4]}
47... R1a2+ {[%clk 0:00:01.2]} 48. Kb1 {[%clk 0:00:20.7]} 48... Rxg2 {[%clk
0:00:01.7]} 49. Rb7+ {[%clk 0:00:17.8]} 1-0

[Event "*** SCC Grand Prix: Titled Tuesday Blitz"]
[Site "Chess.com"]
[Date "2020.08.25"]
[Round "9"]
[White "Vuk2000"]
[Black "Carnivoras"]
[Result "1-0"]
[WhiteElo "2742"]
[BlackElo "2671"]
[TimeControl "180+1"]
[EndTime "11:48:00 PDT"]
[Termination "Vuk2000 won by resignation"]

1. d4 {[%clk 0:03:00.9]} 1... d5 {[%clk 0:02:59.6]} 2. Bf4 {[%clk 0:03:01.1]}
2... Nf6 {[%clk 0:02:59]} 3. e3 {[%clk 0:03:01.5]} 3... Bf5 {[%clk 0:02:58]} 4.
c4 {[%clk 0:03:00.5]} 4... c6 {[%clk 0:02:57.9]} 5. Nc3 {[%clk 0:03:00.9]} 5...
e6 {[%clk 0:02:57.8]} 6. Nf3 {[%clk 0:03:00.5]} 6... Nbd7 {[%clk 0:02:57.6]} 7.
Qb3 {[%clk 0:03:00.3]} 7... Qb6 {[%clk 0:02:49.5]} 8. c5 {[%clk 0:02:59.5]} 8...
Qxb3 {[%clk 0:02:49.5]} 9. axb3 {[%clk 0:03:00.4]} 9... a6 {[%clk 0:02:50.1]}
10. h3 {[%clk 0:02:56.5]} 10... Be7 {[%clk 0:02:49.4]} 11. Kd2 {[%clk 0:02:33]}
11... O-O {[%clk 0:02:46.7]} 12. Nh4 {[%clk 0:02:32.7]} 12... Ne4+ {[%clk
0:02:43.1]} 13. Nxe4 {[%clk 0:02:32.2]} 13... Bxe4 {[%clk 0:02:42.7]} 14. Nf3
{[%clk 0:02:32.7]} 14... f6 {[%clk 0:02:41.4]} 15. b4 {[%clk 0:02:22.8]} 15...
e5 {[%clk 0:02:38]} 16. Bg3 {[%clk 0:02:20.1]} 16... Bxf3 {[%clk 0:02:15.8]} 17.
gxf3 {[%clk 0:02:19.5]} 17... exd4 {[%clk 0:02:16.5]} 18. exd4 {[%clk
0:02:19.5]} 18... f5 {[%clk 0:02:17.2]} 19. Bd3 {[%clk 0:02:12.3]} 19... f4
{[%clk 0:01:58.4]} 20. Bh2 {[%clk 0:02:12.4]} 20... Bh4 {[%clk 0:01:57.4]} 21.
Rhf1 {[%clk 0:02:04.9]} 21... Rae8 {[%clk 0:01:56.2]} 22. Rae1 {[%clk
0:01:53.8]} 22... g5 {[%clk 0:01:20.5]} 23. Rxe8 {[%clk 0:01:43.3]} 23... Rxe8
{[%clk 0:01:20]} 24. Bf5 {[%clk 0:01:43.9]} 24... Nf6 {[%clk 0:01:11.3]} 25. Re1
{[%clk 0:01:40.2]} 25... Bxf2 {[%clk 0:00:49.8]} 26. Rxe8+ {[%clk 0:01:38]}
26... Nxe8 {[%clk 0:00:50.7]} 27. Kd3 {[%clk 0:01:14.4]} 27... Nc7 {[%clk
0:00:42.7]} 28. Bc8 {[%clk 0:01:13.9]} 28... Nb5 {[%clk 0:00:43]} 29. Bxb7
{[%clk 0:01:12.4]} 29... Nxd4 {[%clk 0:00:43.1]} 30. Bxa6 {[%clk 0:01:12.2]}
30... Be3 {[%clk 0:00:32.6]} 31. b5 {[%clk 0:01:05]} 31... cxb5 {[%clk
0:00:25.9]} 32. Bb7 {[%clk 0:00:53.5]} 32... Kf8 {[%clk 0:00:26.1]} 33. Bxd5
{[%clk 0:00:49.2]} 33... Ke7 {[%clk 0:00:26]} 34. Ke4 {[%clk 0:00:38.2]} 34...
Kf6 {[%clk 0:00:16.4]} 35. h4 {[%clk 0:00:21.4]} 35... h6 {[%clk 0:00:15.2]} 36.
h5 {[%clk 0:00:21.3]} 36... Ne6 {[%clk 0:00:13.3]} 37. b4 {[%clk 0:00:15.1]}
37... Ng7 {[%clk 0:00:07]} 38. Bc6 {[%clk 0:00:11.5]} 38... Nxh5 {[%clk
0:00:04.6]} 39. Bxb5 {[%clk 0:00:11.6]} 39... Ng7 {[%clk 0:00:04.8]} 40. Bc4
{[%clk 0:00:09.5]} 40... h5 {[%clk 0:00:03.9]} 41. c6 {[%clk 0:00:07.6]} 41...
Ke7 {[%clk 0:00:04.1]} 42. Ke5 {[%clk 0:00:07.1]} 42... g4 {[%clk 0:00:03.4]}
43. Bxf4 {[%clk 0:00:06.6]} 43... Bxf4+ {[%clk 0:00:03.1]} 44. Kxf4 {[%clk
0:00:07.5]} 44... gxf3 {[%clk 0:00:03.5]} 45. Kxf3 {[%clk 0:00:07.9]} 45... Kd6
{[%clk 0:00:04.1]} 46. b5 {[%clk 0:00:04.6]} 46... Nf5 {[%clk 0:00:04.4]} 47.
Kf4 {[%clk 0:00:04.4]} 47... h4 {[%clk 0:00:02.4]} 48. Kxf5 {[%clk 0:00:04]} 1-0

[Event "*** SCC Grand Prix: Titled Tuesday Blitz"]
[Site "Chess.com"]
[Date "2020.08.25"]
[Round "9"]
[White "FearNoEvil12"]
[Black "Ausbildung"]
[Result "0-1"]
[WhiteElo "1978"]
[BlackElo "2252"]
[TimeControl "180+1"]
[EndTime "11:48:00 PDT"]
[Termination "Ausbildung won on time"]

1. e4 {[%clk 0:03:00.9]} 1... g6 {[%clk 0:02:57.9]} 2. Nc3 {[%clk 0:02:59.2]}
2... Bg7 {[%clk 0:02:58.4]} 3. f4 {[%clk 0:02:59.4]} 3... d6 {[%clk 0:02:58.8]}
4. Nf3 {[%clk 0:02:59.7]} 4... Nf6 {[%clk 0:02:57.5]} 5. Bc4 {[%clk 0:02:58.6]}
5... O-O {[%clk 0:02:54.5]} 6. d3 {[%clk 0:02:57.8]} 6... c6 {[%clk 0:02:52.3]}
7. Bb3 {[%clk 0:02:56.2]} 7... a5 {[%clk 0:02:51.4]} 8. a4 {[%clk 0:02:54.8]}
8... Be6 {[%clk 0:02:50.1]} 9. f5 {[%clk 0:02:45.7]} 9... Bxb3 {[%clk
0:02:48.7]} 10. cxb3 {[%clk 0:02:45.7]} 10... Na6 {[%clk 0:02:48.7]} 11. O-O
{[%clk 0:02:44.3]} 11... Nb4 {[%clk 0:02:39.2]} 12. Ng5 {[%clk 0:02:41.8]} 12...
h6 {[%clk 0:02:36]} 13. Nf3 {[%clk 0:02:39.5]} 13... Kh7 {[%clk 0:02:35.2]} 14.
Kh1 {[%clk 0:02:36.8]} 14... Nd7 {[%clk 0:02:23.7]} 15. Qe1 {[%clk 0:02:24.4]}
15... Nxd3 {[%clk 0:02:20.9]} 16. Qh4 {[%clk 0:02:23.1]} 16... Nxc1 {[%clk
0:02:15]} 17. Raxc1 {[%clk 0:02:21.3]} 17... e6 {[%clk 0:02:09.5]} 18. Qg3
{[%clk 0:02:12.3]} 18... exf5 {[%clk 0:02:05.7]} 19. exf5 {[%clk 0:02:09.3]}
19... Ne5 {[%clk 0:02:01.2]} 20. Rcd1 {[%clk 0:02:02.8]} 20... Nxf3 {[%clk
0:01:50]} 21. Qxf3 {[%clk 0:02:01.6]} 21... Qf6 {[%clk 0:01:41.6]} 22. Ne4
{[%clk 0:01:55.8]} 22... Qxf5 {[%clk 0:01:34.9]} 23. Qxf5 {[%clk 0:01:54.6]}
23... gxf5 {[%clk 0:01:33.9]} 24. Nxd6 {[%clk 0:01:55.1]} 24... Bxb2 {[%clk
0:01:25.2]} 25. Nxf5 {[%clk 0:01:53.2]} 25... Rad8 {[%clk 0:01:18.4]} 26. Nd6
{[%clk 0:01:37.5]} 26... b6 {[%clk 0:01:08.8]} 27. Nc4 {[%clk 0:01:35.4]} 27...
Bd4 {[%clk 0:01:05.1]} 28. g3 {[%clk 0:01:31.4]} 28... Kg7 {[%clk 0:01:02.6]}
29. Rf4 {[%clk 0:01:27.2]} 29... Bc5 {[%clk 0:00:54.3]} 30. Rdf1 {[%clk
0:01:25.8]} 30... Rd4 {[%clk 0:00:50.9]} 31. Rf6 {[%clk 0:01:21.8]} 31... Rd5
{[%clk 0:00:41]} 32. Rxc6 {[%clk 0:01:17.7]} 32... f5 {[%clk 0:00:40.2]} 33.
Nxb6 {[%clk 0:01:13.6]} 33... Bxb6 {[%clk 0:00:32.1]} 34. Rxb6 {[%clk
0:01:13.3]} 34... Rc8 {[%clk 0:00:31.6]} 35. Re1 {[%clk 0:01:06]} 35... Rc7
{[%clk 0:00:28.7]} 36. Ree6 {[%clk 0:01:01.7]} 36... Rd2 {[%clk 0:00:27.9]} 37.
Rg6+ {[%clk 0:00:51.8]} 37... Kf7 {[%clk 0:00:26.8]} 38. Rbf6+ {[%clk
0:00:49.6]} 38... Ke7 {[%clk 0:00:26.2]} 39. Rg7+ {[%clk 0:00:48.7]} 39... Kxf6
{[%clk 0:00:24.8]} 40. Rxc7 {[%clk 0:00:49.1]} 40... Kg5 {[%clk 0:00:21.7]} 41.
Kg1 {[%clk 0:00:39.4]} 41... Kg4 {[%clk 0:00:19.9]} 42. Rc5 {[%clk 0:00:23.9]}
42... h5 {[%clk 0:00:17.5]} 43. Rxa5 {[%clk 0:00:21.4]} 43... h4 {[%clk
0:00:17.5]} 44. gxh4 {[%clk 0:00:19.5]} 44... f4 {[%clk 0:00:16.8]} 45. Kf1
{[%clk 0:00:17.8]} 45... Kf3 {[%clk 0:00:16.4]} 46. Re5 {[%clk 0:00:15.4]} 46...
Rb2 {[%clk 0:00:15.2]} 47. h5 {[%clk 0:00:10.6]} 47... Rxh2 {[%clk 0:00:14.9]}
48. Ke1 {[%clk 0:00:08.6]} 48... Rh1+ {[%clk 0:00:13.4]} 49. Kd2 {[%clk
0:00:08.3]} 49... Kf2 {[%clk 0:00:13.5]} 50. Rf5 {[%clk 0:00:07.7]} 50... f3
{[%clk 0:00:13.3]} 51. b4 {[%clk 0:00:08]} 51... Ra1 {[%clk 0:00:12.3]} 52. a5
{[%clk 0:00:05.9]} 52... Ra2+ {[%clk 0:00:12.6]} 53. Kd3 {[%clk 0:00:04.9]}
53... Ra3+ {[%clk 0:00:11.2]} 0-1

[Event "*** SCC Grand Prix: Titled Tuesday Blitz"]
[Site "Chess.com"]
[Date "2020.08.25"]
[Round "9"]
[White "Margarita2907"]
[Black "Karina_Ivanova"]
[Result "0-1"]
[WhiteElo "2090"]
[BlackElo "2246"]
[TimeControl "180+1"]
[EndTime "11:48:03 PDT"]
[Termination "Karina_Ivanova won by resignation"]

1. e4 {[%clk 0:03:00.9]} 1... c6 {[%clk 0:02:57.9]} 2. d4 {[%clk 0:03:00]} 2...
d5 {[%clk 0:02:57.4]} 3. e5 {[%clk 0:02:57.7]} 3... Bf5 {[%clk 0:02:56.7]} 4.
Nd2 {[%clk 0:02:57.5]} 4... e6 {[%clk 0:02:55.9]} 5. Nb3 {[%clk 0:02:55.2]} 5...
Nd7 {[%clk 0:02:55.5]} 6. a4 {[%clk 0:02:55.5]} 6... Ne7 {[%clk 0:02:53.7]} 7.
Nf3 {[%clk 0:02:54.2]} 7... c5 {[%clk 0:02:52.2]} 8. c3 {[%clk 0:02:30.2]} 8...
c4 {[%clk 0:02:45.8]} 9. Nbd2 {[%clk 0:02:28.8]} 9... Nc6 {[%clk 0:02:44.4]} 10.
Be2 {[%clk 0:02:26.4]} 10... Ke7 {[%clk 0:02:42.5]} 11. O-O {[%clk 0:02:13.7]}
11... h6 {[%clk 0:02:36.2]} 12. b3 {[%clk 0:02:12.1]} 12... cxb3 {[%clk
0:02:34]} 13. Nxb3 {[%clk 0:02:10]} 13... g5 {[%clk 0:02:32]} 14. c4 {[%clk
0:01:30]} 14... dxc4 {[%clk 0:02:28.2]} 15. Bxc4 {[%clk 0:01:29.3]} 15... Nb6
{[%clk 0:02:28.5]} 16. Bb5 {[%clk 0:01:23.8]} 16... Qd5 {[%clk 0:02:20]} 17.
Bxc6 {[%clk 0:01:05.3]} 17... Qxc6 {[%clk 0:02:18.2]} 18. Nc5 {[%clk 0:01:03.9]}
18... Rd8 {[%clk 0:02:09.2]} 19. Ba3 {[%clk 0:00:57.8]} 19... Nc4 {[%clk
0:01:57.2]} 20. Nxb7+ {[%clk 0:00:45.1]} 20... Nxa3 {[%clk 0:01:56.1]} 21. Nxd8
{[%clk 0:00:45.4]} 21... Kxd8 {[%clk 0:01:53.8]} 22. Qb3 {[%clk 0:00:38.2]}
22... Bc2 {[%clk 0:01:37.7]} 23. Qb8+ {[%clk 0:00:31.7]} 23... Qc8 {[%clk
0:01:12.3]} 24. Qxa7 {[%clk 0:00:31.1]} 24... Bb4 {[%clk 0:01:01.4]} 25. Qxf7
{[%clk 0:00:21.2]} 25... Rf8 {[%clk 0:00:57.4]} 26. Qg7 {[%clk 0:00:21.4]} 26...
Qd7 {[%clk 0:00:52.3]} 27. Qxd7+ {[%clk 0:00:19.2]} 27... Kxd7 {[%clk
0:00:51.9]} 28. Rfc1 {[%clk 0:00:19.6]} 28... Rc8 {[%clk 0:00:41.6]} 29. Ne1
{[%clk 0:00:17.9]} 29... Bxa4 {[%clk 0:00:30.5]} 30. Rxc8 {[%clk 0:00:15.7]}
30... Kxc8 {[%clk 0:00:30.4]} 31. Nd3 {[%clk 0:00:15.9]} 31... Be7 {[%clk
0:00:29.3]} 32. Nc5 {[%clk 0:00:15.3]} 32... Bxc5 {[%clk 0:00:28.8]} 33. dxc5
{[%clk 0:00:15.8]} 33... Bb5 {[%clk 0:00:20.9]} 34. Rxa3 {[%clk 0:00:15.7]}
34... Kc7 {[%clk 0:00:21.6]} 35. Rc3 {[%clk 0:00:15.4]} 35... Kc6 {[%clk
0:00:21.5]} 36. g3 {[%clk 0:00:15.8]} 36... g4 {[%clk 0:00:20.6]} 37. Kg2 {[%clk
0:00:14.8]} 37... Be2 {[%clk 0:00:20]} 38. h3 {[%clk 0:00:14.9]} 38... h5 {[%clk
0:00:19.7]} 39. hxg4 {[%clk 0:00:14.6]} 39... hxg4 {[%clk 0:00:19.7]} 40. Re3
{[%clk 0:00:14]} 40... Bd1 {[%clk 0:00:18.3]} 41. Kf1 {[%clk 0:00:12.7]} 41...
Kxc5 {[%clk 0:00:17.8]} 42. Ke1 {[%clk 0:00:13.4]} 42... Bf3 {[%clk 0:00:13.5]}
43. Kd2 {[%clk 0:00:13.3]} 43... Kd4 {[%clk 0:00:13.2]} 44. Re1 {[%clk
0:00:11.5]} 44... Be4 {[%clk 0:00:12]} 45. Rh1 {[%clk 0:00:09.1]} 45... Bxh1
{[%clk 0:00:11.1]} 46. Ke2 {[%clk 0:00:08.2]} 46... Kxe5 {[%clk 0:00:10.1]} 47.
Ke3 {[%clk 0:00:08.1]} 47... Be4 {[%clk 0:00:09.7]} 48. Kd2 {[%clk 0:00:07.3]}
48... Kd4 {[%clk 0:00:09.7]} 49. Ke2 {[%clk 0:00:07.4]} 49... Bf3+ {[%clk
0:00:10.6]} 0-1